{"text_format":"3","workbook":"xlsx","n_sheets":48,"sheets":["Инструкция","Лог обновления","Титульный","Территории","Дифференциация","Доступ к товарам и услугам","Публикация в других источниках","Сведения об изменении","Комментарии","Проверка","AllSheetsInThisWorkbook","TEHSHEET","modCheckCyan","modSettings","modfrmSetForPrint","modInfo","et_union_hor","et_union_vert","modList00","modList01","modList02","modList03","modList07","modList09","modHTTP","modfrmRegion","MR_LIST","REESTR_VT","REESTR_VED","modfrmReestrObj","DataOrg","modProv","modReestr","modfrmReestr","modUpdTemplMain","REESTR_ORG","modClassifierValidate","modHyp","modfrmDateChoose","modComm","modThisWorkbook","REESTR_MO","modfrmReestrMR","modServiceModule","modfrmCheckUpdates","REESTR_DS","REESTR_CHS","REESTR_LINK"],"not_rendered":{"images":23,"macros":1,"defined_names":195},"read":"whole","date_system":"1900"}

{"sheet":"Инструкция","index":0,"n_rows":90,"n_cols":27,"rows_kept":90,"merged":[[1,1,1,6],[2,1,2,2],[4,1,4,24],[6,4,18,23],[20,5,20,12],[20,15,20,23],[21,5,21,12],[21,15,21,23],[22,15,22,22],[34,4,38,23],[39,4,39,23],[40,4,44,23],[45,4,56,23],[57,4,57,23],[58,4,58,6],[58,7,58,23],[59,4,59,6],[60,7,60,23],[69,4,69,23],[70,4,70,23],[71,5,71,23],[72,5,72,23],[73,5,73,23],[74,4,74,23],[75,4,75,23],[76,4,76,23],[77,4,77,23],[78,4,78,23],[79,4,79,23],[80,4,80,23],[81,4,81,23],[82,4,82,23],[83,4,83,23],[85,4,85,23],[87,5,87,18],[89,5,89,23]]}
[{"$nulls":26}," (требуется обновление)"]
[null,{"$f":"\"Код шаблона: \" & GetCode()","v":"Код шаблона: JKH.OPEN.INFO.QUARTER.HVS.6"}]
[null,{"$f":"\"Версия \" & GetVersion()","v":"Версия 1.0"}]
[]
[null,"Информация о наличии (отсутствии) технической возможности подключения к централизованной системе холодного водоснабжения, а также о регистрации и ходе реализации заявок о подключении к централизованной системе холодного водоснабжения"]
[]
[{"$nulls":4},"• На рабочем месте должен быть установлен MS Office 2003 SP3, 2007 SP3, 2010, 2013 с полной версией MS Excel                                                                                                                                • Для корректной работы отчета необходим доступ к сети \"Интернет\"                                                         \n                                                                                                                                                          • Макросы во время работы должны быть включены (!)\n• Для корректной работы отчёта требуется выбрать низкий уровень безопасности\n(В меню MS Excel 2003: Сервис | Макрос | Безопасность | выбрать пункт «Низкая безопасность» | OK)\n(В меню MS Excel 2007/2010/2013: Параметры Excel | Центр управления безопасностью | Параметры центра управления безопасностью | Параметры макросов | Включить все макросы | ОК)\n\n• Если Вы работаете в табличном процессоре MS Excel 2007 и выше, то можете использовать для работы формат XLSB (Двоичная книга Excel). При работе в формате XLSB заметно быстрее происходит сохранение файла, а также уменьшается размер по сравнению с форматами XLS и XLSM\n\n• Не рекомендуется снимать защиту с листов и каким-либо образом модифицировать защищаемые формулы и расчётные поля, в противном случае, отчёт будет отклонён системой\n• При сохранении не следует выбирать формат XLSX (Книга Excel), так как в указанном формате макросы, необходимые для работы отчёта, безвозвратно удаляются"]
{"$rows_empty":13}
[{"$nulls":4},"A"," - не обязательные для заполнения",{"$nulls":8},"A"," - с формулами и константами"]
[{"$nulls":4},"A"," - обязательные для заполнения",{"$nulls":8},"A"," - с выбором значений до двойному клику,"]
[{"$nulls":15},"либо с возможностью выбора даты из календаря или ручного ввода"]
{"$rows_empty":11}
[{"$nulls":4},"Если в предложенном Вам списке необходимая организация, МР/МО отсутствуют, обновите реестры с помощью кнопок\n\nВ результате синхронизации с базой данных список организаций (МР/МО) будет заменён актуальным (механизм синхронизации требует подключения к сети Интернет и основан на использовании протокола HTTPS (TCP порт 443))\n\nЕсли после обновления Вам не удалось найти необходимую организацию в списке, обратитесь к ответственному за поддержание реестра Вашего региона."]
{"$rows_empty":10}
[{"$nulls":4},"• При сохранении шаблона осуществляется проверка корректности данных, в том числе на наличие значений в ячейках, обязательных для заполнения\n\n• Если какая-то ячейка не удовлетворяет условию проверки, на лист «Проверка» добавляется гиперссылка на данную ячейку и указывается причина ошибки\n\n• В колонке «Статус» для каждого сообщения возможны 2 значения: ошибка и предупреждение\n\n• При наличии сообщений со статусом «Ошибка» шаблон будет отклонён системой и не будет загружен в хранилище данных, сообщения со статусом «Предупреждение» носят информационный характер, и такой шаблон будет принят системой"]
{"$rows_empty":11}
[{"$nulls":4},"Обратиться в службу технической поддержки"]
{"$rows_empty":11}
[{"$nulls":4},"Законодательная основа шаблона"]
[{"$nulls":4},"Данный шаблон разработан в соответствии с:"]
[{"$nulls":4}," • ","Постановлением Правительства РФ от 17.01.2013 N 6 \"О стандартах раскрытия информации в сфере водоснабжения и водоотведения\""]
[{"$nulls":4}," • ","Приказом ФСТ России от 15.05.2013 N 129 \"Об утверждении форм предоставления информации, подлежащей раскрытию, организациями, осуществляющими горячее водоснабжение, холодное водоснабжение и водоотведение, и органами регулирования тарифов, а также Правил заполнения таких форм\""]
[]
[{"$nulls":4},"Принципы работы с шаблоном"]
[{"$nulls":4},"  Перед началом работы с шаблоном Вам необходимо нажать кнопку \"Приступить к заполнению\", после чего на форме выбора выбрать из выпадающего списка нужный субъект РФ. После выбора субъекта РФ в шаблоне отобразятся листы для заполнения."]
[{"$nulls":4},"  На листе «Титульный» нужно заполнить все ячейки голубого цвета."]
[{"$nulls":4},"  На листе «Уведомление» «Адрес сайта в сети интернет» вводите, не нарушая цвет ячейки /если копируете гиперссылку из браузера, то выполните двойной щелчок левой кнопки мыши по ячейке и только после этого можете вставить скопированный элемент/.\n"]
[{"$nulls":4},"  При вводе даты на расчетных листах необходимо выбрать дату из календаря (иконка справа от выбранной ячейки), либо ввести дату непосредственно в ячейку в формате - 'ДД.ММ.ГГГГ'."]
[{"$nulls":4},"  Если какой-либо из показателей на расчетных листах для Вашей организации отсутствует, введите в поле, обязательное для заполнение, «0» (для числовых показателей) и «-» (для текстовых).\n"]
[{"$nulls":4},"  Внимательно следите за информационными сообщениями на расчетных листах."]
[{"$nulls":4},"  Все необходимые комментарии по всем формам Вы можете отразить на листе «Комментарии»."]
[{"$nulls":4},"Инструкция по загрузке сопроводительных материалов с помощью \"ЕИАС Мониторинг\""]
[{"$nulls":4},"Получить более полную Инструкцию для данного шаблона"]
[]
[{"$nulls":4},"При наличии подключения к Интернет, можно автоматически проверять наличие доступных обновлений. Выберите способ оповещения о наличии обновлений для отчёта:"]
[]
[{"$nulls":5},"проверять доступные обновления (рекомендуется)",{"$nulls":20},"y"]
[]
[{"$nulls":5},"никогда не проверять наличие обновлений (не рекомендуется)"]

{"sheet":"Лог обновления","index":1,"n_rows":15,"n_cols":3,"rows_kept":15,"hidden":true}
["Дата/Время","Сообщение","Статус"]
["2016-07-21T10:32:44","Проверка доступных обновлений...","Информация"]
["2016-07-21T10:32:45","Нет доступных обновлений для отчёта с кодом JKH.OPEN.INFO.QUARTER.HVS.6!","Информация"]
["2016-07-21T10:32:54","Проверка доступных обновлений...","Информация"]
["2016-07-21T10:32:55","Нет доступных обновлений для отчёта с кодом JKH.OPEN.INFO.QUARTER.HVS.6!","Информация"]
["2016-07-21T13:56:35","Проверка доступных обновлений...","Информация"]
["2016-07-21T13:56:36","Нет доступных обновлений для отчёта с кодом JKH.OPEN.INFO.QUARTER.HVS.6!","Информация"]
["2018-04-03T15:30:30","Проверка доступных обновлений...","Информация"]
["2018-04-03T15:30:31","Нет доступных обновлений для отчёта с кодом JKH.OPEN.INFO.QUARTER.HVS.6!","Информация"]
["2018-04-03T15:33:36","Проверка доступных обновлений...","Информация"]
["2018-04-03T15:33:37","Нет доступных обновлений для отчёта с кодом JKH.OPEN.INFO.QUARTER.HVS.6!","Информация"]
["2018-04-09T15:16:45","Проверка доступных обновлений...","Информация"]
["2018-04-09T15:16:46","Нет доступных обновлений для отчёта с кодом JKH.OPEN.INFO.QUARTER.HVS.6!","Информация"]
["2018-04-13T01:32:56","Проверка доступных обновлений...","Информация"]
["2018-04-13T01:32:57","Нет доступных обновлений для отчёта с кодом JKH.OPEN.INFO.QUARTER.HVS.6!","Информация"]

{"sheet":"Титульный","index":2,"n_rows":41,"n_cols":6,"rows_kept":41,"merged":[[4,4,4,5]]}
[{"$nulls":5},28425154]
[]
[]
[{"$nulls":5},{"$f":"version","v":"Версия 1.0"}]
[{"$nulls":4},"Информация о наличии (отсутствии) технической возможности подключения к централизованной системе холодного водоснабжения, а также о регистрации и ходе реализации заявок о подключении к централизованной системе холодного водоснабжения"]
[]
[{"$nulls":4},"Субъект РФ","Нижегородская область"]
[]
[{"$nulls":4},"Публикация2","На сайте регулирующего органа"]
[]
[{"$nulls":4},"По решению организации информация раскрыта на ее официальном сайте в сети Интернет?","да"]
[]
[{"$nulls":4},"Тип отчета","Первичное раскрытие информации"]
[{"$nulls":4},"Дата внесения изменений в информацию, подлежащую раскрытию"]
[]
[{"$nulls":4},"Применяется дифференциация тарифа по централизованным системам теплоснабжения?"]
[{"$nulls":4},"Информация по скольким централизованным системам теплоснабжения будет заполнена в шаблоне?"]
[]
[{"$nulls":5},"Отчетный период"]
[{"$nulls":4},"Год",2018]
[{"$nulls":4},"Квартал","I квартал"]
[]
[{"$nulls":4},"Является ли данное юридическое лицо подразделением (филиалом) другой организации"]
[]
[]
[{"$nulls":4},"Наименование организации (филиала)","ООО \"Профит\""]
[]
[]
[{"$nulls":4},"Наименование головной организации"]
[{"$nulls":4},"ИНН","5262287335"]
[{"$nulls":4},"КПП","526201001"]
[{"$nulls":4},"Вид деятельности"]
[]
[{"$nulls":4},"Почтовый адрес регулируемой организации","603104, Россия, Нижний Новгород, ул. Нартова, д.6. пом. 2, офис 67"]
[{"$nulls":4},"Фамилия, имя, отчество руководителя","Удалов Борис Вадимович"]
[]
[{"$nulls":5},"Ответственный за составление формы"]
[{"$nulls":4},"Фамилия, имя, отчество","Лисина Наталья Валентиновна"]
[{"$nulls":4},"Должность","заместитель начальника технического отдела"]
[{"$nulls":4},"(код) номер телефона","8(831)278 64 84 "]
[{"$nulls":4},"e-mail","om1997@mail.ru"]

{"sheet":"Территории","index":3,"n_rows":16,"n_cols":17,"rows_kept":16,"merged":[[3,3,3,7],[4,3,4,7],[6,3,6,4],[6,5,6,6],[8,3,8,4],[8,5,8,7],[8,8,8,11],[9,5,9,6],[9,8,9,9],[10,5,10,6],[10,8,10,9],[12,3,14,3],[12,4,14,4],[12,5,13,5],[12,6,13,6],[12,7,13,7]]}
[]
[]
[]
[{"$nulls":3},"Перечень муниципальных районов и муниципальных образований (территорий оказания услуг)"]
[{"$nulls":3},{"$f":"IF(org=0,\"Не определено\",org)","v":"ООО \"Профит\""}]
[]
[{"$nulls":5},"да"]
[]
[{"$nulls":3},"Территория оказания услуг",null,"Муниципальный район",null,null,"Муниципальное образование"]
[{"$nulls":3},"№ п/п","Наименование","№ п/п",null,"Наименование","№ п/п",null,"Наименование","ОКТМО"]
[{"$nulls":3},"1","2","3",null,"4","5",null,"6","7"]
[{"$nulls":3},0,null,"",null,null,""]
[null,"auto",null,1,"город Нижний Новгород, город Нижний Новгород (22701000);","",1,"город Нижний Новгород","","1","город Нижний Новгород","22701000",{"$nulls":4},"город Нижний Новгород, город Нижний Новгород (22701000);"]
[{"$nulls":8},"",null,""]
[{"$nulls":5},"",null,"",""]
[null,"man",null,null,"","",null,null,"",{"$nulls":7},"Добавить территорию оказания услуг"]

{"sheet":"Дифференциация","index":4,"n_rows":26,"n_cols":26,"rows_kept":26,"merged":[[3,3,3,8],[4,3,4,8],[5,0,6,5],[7,1,7,3],[7,4,7,5],[8,1,8,3],[8,4,8,5],[9,1,9,3],[9,4,9,5],[10,1,10,3],[10,4,10,5],[11,1,11,3],[12,1,12,3],[13,1,13,3],[17,0,18,0],[17,3,17,4],[17,5,17,8],[17,9,17,12],[18,6,18,7],[18,10,18,11],[19,6,19,7],[19,10,19,11],[21,3,23,3],[21,4,23,4],[21,5,23,5],[21,6,22,6],[21,7,22,7],[21,8,22,8],[21,9,22,9],[24,2,25,2]]}
[]
[]
[]
[{"$nulls":3},"Информация о наличии (отсутствии) технической возможности подключения к централизованной системе холодного водоснабжения, а также о регистрации и ходе реализации заявок о подключении к централизованной системе холодного водоснабжения"]
[{"$nulls":3},{"$f":"IF(org=0,\"Не определено\",org)","v":"ООО \"Профит\""}]
{"$rows_empty":12}
[{"$nulls":3},"Вид деятельности",null,"Дифференциация по территориям оказания услуг",{"$nulls":3},"Дифференциация по централизованным системам холодного водоснабжения"]
[{"$nulls":3},"№ п/п","Наименование","да/нет","№ п/п",null,"Наименование","да/нет","№ п/п",null,"Наименование"]
[{"$nulls":3},"1","2","3","4",null,"5","6","7",null,"8"]
[]
[{"$nulls":3},"1","Холодное водоснабжение, в т.ч. транспортировка воды, включая распределение воды","нет",null,1,null,"нет","","1","",{"$nulls":10},64235585,"a",1705000]
[{"$nulls":10},"",null,""]
[{"$nulls":8},"",null,""]
[{"$nulls":4},"",{"$nulls":5},""]
[{"$nulls":10},""]

{"sheet":"Доступ к товарам и услугам","index":5,"n_rows":15,"n_cols":10,"rows_kept":15,"merged":[[3,3,3,9],[4,3,4,9],[6,3,7,3],[6,4,7,4],[6,5,7,5],[6,6,7,6],[6,7,7,7],[6,8,6,9],[12,3,14,3],[12,4,14,4],[12,5,14,5],[12,6,13,6],[12,7,13,7],[12,8,12,9]]}
[{"$nulls":9},4]
[]
[]
[{"$nulls":3},"Информация о наличии (отсутствии) технической возможности подключения к централизованной системе холодного водоснабжения, а также о регистрации и ходе реализации заявок о подключении к централизованной системе холодного водоснабжения"]
[{"$nulls":3},{"$f":"IF(org=0,\"Не определено\",org)","v":"ООО \"Профит\""}]
[]
[{"$nulls":3},"№ п/п","Информация, подлежащая раскрытию","Единица измерения","О","№ п/п","Вид деятельности:\r\n  - Холодное водоснабжение, в т.ч. транспортировка воды, включая распределение воды\r\n\r\nТерритория оказания услуг:\r\n  - без дифференциации\r\n\r\nЦентрализованная система холодного водоснабжения:\r\n  - без дифференциации"]
[{"$nulls":8},"Показатель","Комментарий"]
[{"$nulls":3},"1","2","3",null,null,{"$f":"J1&\".1\"","v":"4.1"},{"$f":"J1&\".2\"","v":"4.2"}]
[{"$nulls":3},1,"Количество поданных заявок","шт",null,null,0]
[{"$nulls":3},2,"Количество исполненных заявок","шт",null,null,0]
[{"$nulls":3},3,"Количество заявок с решением об отказе в подключении","шт",null,null,0]
[{"$nulls":3},4,"Резерв мощности централизованной системы холодного водоснабжения в течение квартала","тыс.куб.м/сутки",null,1,"0"]
[{"$nulls":8},{"v":0,"d":"0.00"}]
[{"$nulls":8},"Добавить централизованную систему холодного водоснабжения"]

{"sheet":"Публикация в других источниках","index":6,"n_rows":12,"n_cols":8,"rows_kept":12,"merged":[[4,3,4,4],[5,3,5,4],[7,3,8,3],[7,4,8,4],[7,5,7,7]]}
[]
[]
[]
[]
[{"$nulls":3},"Публикация в других источниках\n(публикация информации по решению организации на ее официальном сайте в сети \"Интернет\")"]
[{"$nulls":3},{"$f":"IF(org=0,\"Не определено\",org)","v":"ООО \"Профит\""}]
[]
[{"$nulls":3},"№ п/п","Описание опубликованной информации","Официальный сайт организации в сети \"Интернет\""]
[{"$nulls":5},"Дата\nразмещения информации","Адрес официальной страницы сайта\nв сети \"Интернет\", на котором размещена информация","Ссылка на снимок экрана\nофициальной страницы сайта в сети \"Интернет\", на котором размещена информация"]
[{"$nulls":3},"1","2","3","4","5"]
[{"$nulls":3},1,"Информация о наличии (отсутствии) технической возможности подключения к централизованной системе холодного водоснабжения, а также о регистрации и ходе реализации заявок о подключении к централизованной системе холодного водоснабжения (пункт 21 Постановления Правительства РФ от 17.01.2013 N 6 \"О стандартах раскрытия информации в сфере водоснабжения и водоотведения\")","09.04.2018","http://profit-portal.ru/","https://tariff.eias.ru/disclo/get_file?p_guid=0fcecc13-c07a-49f7-97a1-ff1471ec4092"]
[{"$nulls":4},"Добавить опубликованную информацию"]

{"sheet":"Сведения об изменении","index":7,"n_rows":14,"n_cols":5,"rows_kept":14,"hidden":true,"merged":[[6,3,6,4],[7,3,7,4]]}
[]
[]
[]
[]
[]
[]
[{"$nulls":3},"Сведения об изменениях в первоначально опубликованной информации"]
[{"$nulls":3},{"$f":"IF(org=0,\"Не определено\",org)","v":"ООО \"Профит\""}]
[]
[{"$nulls":3},"№ п/п","Сведения"]
[{"$nulls":3},"1","2"]
[{"$nulls":3},0]
[{"$nulls":3},1]
[{"$nulls":4},"Добавить строку"]

{"sheet":"Комментарии","index":8,"n_rows":13,"n_cols":5,"rows_kept":13,"merged":[[6,3,6,4],[7,3,7,4]]}
[]
[]
[]
[]
[]
[]
[{"$nulls":3},"Комментарии"]
[{"$nulls":3},{"$f":"IF(org=0,\"Не определено\",org)","v":"ООО \"Профит\""}]
[]
[{"$nulls":3},"№ п/п","Комментарий"]
[{"$nulls":3},"1","2"]
[{"$nulls":3},0]
[{"$nulls":4},"Добавить"]

{"sheet":"Проверка","index":9,"n_rows":4,"n_cols":5,"rows_kept":4,"merged":[[1,1,1,4]]}
[]
[null,"Результат проверки"]
[]
[null,"Ссылка1","Ссылка2","Причина","Статус"]

{"sheet":"AllSheetsInThisWorkbook","index":10,"n_rows":39,"n_cols":2,"rows_kept":39,"hidden":true}
["Расчетные листы","Скрытые листы"]
["Инструкция","AllSheetsInThisWorkbook"]
["Лог обновления","TEHSHEET"]
["Титульный","modCheckCyan"]
["Территории","modSettings"]
["Дифференциация","modfrmSetForPrint"]
["Доступ к товарам и услугам","modInfo"]
["Публикация в других источниках","et_union_hor"]
["Сведения об изменении","et_union_vert"]
["Комментарии","modList00"]
["Проверка","modList01"]
[null,"modList02"]
[null,"modList03"]
[null,"modList07"]
[null,"modList09"]
[null,"modHTTP"]
[null,"modfrmRegion"]
[null,"MR_LIST"]
[null,"REESTR_VT"]
[null,"REESTR_VED"]
[null,"modfrmReestrObj"]
[null,"DataOrg"]
[null,"modProv"]
[null,"modReestr"]
[null,"modfrmReestr"]
[null,"modUpdTemplMain"]
[null,"REESTR_ORG"]
[null,"modClassifierValidate"]
[null,"modHyp"]
[null,"modfrmDateChoose"]
[null,"modComm"]
[null,"modThisWorkbook"]
[null,"REESTR_MO"]
[null,"modfrmReestrMR"]
[null,"modServiceModule"]
[null,"modfrmCheckUpdates"]
[null,"REESTR_DS"]
[null,"REESTR_CHS"]
[null,"REESTR_LINK"]

{"sheet":"TEHSHEET","index":11,"n_rows":43,"n_cols":14,"rows_kept":43,"hidden":true}
["NSRF",null,"year_list","logical","Месяц\n(MONTH)","Квартал\n(QUARTER)","Месяц\n(kind_of_publication)","Единица измерения объема оказываемых услуг ГВС\n/kind_of_unit_GVS/","Вид тарифа\n/list_of_tariff/","mr_id","версия шаблона\n (DocProp_Version)","0.1","Тип отчета\ndata_type","Print_form"]
["Алтайский край",null,2013,"да","январь","I квартал","На официальном сайте организации","тыс.куб.м/сутки",null,52,"код шаблона\n(DocProp_TemplateCode)","JKH.OPEN.INFO.QUARTER.WARM.570","Первичное раскрытие информации","Форма 1.1"]
["Амурская область",null,2014,"нет","февраль","II квартал","На сайте регулирующего органа","Гкал/час","Без дифференциации","sys_id","сфера\n(TSphere)","ТС","Корректировка ранее раскрытой информации","Форма 1.2"]
["Белгородская область",null,2015,null,"март","III квартал",null,"куб.м/час",null,104,"сфера(латиница)\n(TSphere_trans)","WARM","Изменения в раскрытой ранее информации","Форма 1.3"]
["Волгоградская область",null,2016,null,"апрель","IV квартал",{"$nulls":4},"сфера расширено\n(TSphere_full)",null,null,"Форма 1.4"]
["Еврейская автономная область",null,2017,null,"май",{"$nulls":8},"Форма 1.5"]
["Кабардино-Балкарская республика",{"$nulls":3},"июнь",{"$nulls":8},"Форма 1.6"]
["Калининградская область",{"$nulls":3},"июль",{"$nulls":5},"true",null,null,"Форма 1.7"]
["Калужская область",{"$nulls":3},"август",{"$nulls":8},"Форма 1.8"]
["Кемеровская область",{"$nulls":3},"сентябрь",{"$nulls":8},"Форма 1.9"]
["Костромская область",{"$nulls":3},"октябрь",{"$nulls":5},"https://appsrv.regportal-tariff.ru/procwsxls/",null,null,"Форма 1.10"]
["Краснодарский край",{"$nulls":3},"ноябрь",{"$nulls":8},"Форма 1.11"]
["Красноярский край",{"$nulls":3},"декабрь",{"$nulls":8},"Форма 1.12"]
["Ленинградская область",{"$nulls":12},"Форма 2.1"]
["Нижегородская область",{"$nulls":12},"Форма 2.2"]
["Новосибирская область",{"$nulls":5},"Текущая дата",{"$nulls":6},"Форма 2.3"]
["Омская область",null,"Организация",{"$f":"IF(f_year = \"\",\"\", IF(LEN(f_quart)=0,\"\",IF(f_quart=\"I квартал\", \"01.01.\"&f_year,IF(f_quart=\"II квартал\",\"01.04.\"&f_year,(IF(f_quart=\"III квартал\", \"01.07.\"&f_year,\"01.10.\"&f_year)))) ))","v":"01.01.2018"},{"$f":"IF(f_year = \"\",\"\", IF(LEN(f_quart)=0,\"\",IF(f_quart=\"I квартал\", \"31.03.\"& f_year,IF(f_quart=\"II квартал\",\"30.06.\"& f_year,(IF(f_quart=\"III квартал\", \"30.09.\"& f_year,\"31.12.\"& f_year)))) ))","v":"31.03.2018"},null,"13.04.2018 6:32:59",{"$nulls":6},"Форма 2.4"]
["Оренбургская область",{"$nulls":12},"Форма 2.5"]
["Пермский край",{"$nulls":5},"Признак изменения данных на листе Доступ к товарам и услугам",{"$nulls":6},"Форма 2.6"]
["Республика Башкортостан",null,"Виды деятельности",{"$nulls":3},true,{"$nulls":6},"Форма 2.7"]
["Республика Бурятия",{"$nulls":12},"Форма 2.8"]
["Республика Дагестан",{"$nulls":12},"Форма 2.9"]
["Республика Карелия",{"$nulls":12},"Форма 2.10"]
["Республика Крым",{"$nulls":12},"Форма 2.11"]
["Республика Татарстан",{"$nulls":12},"Форма 2.12"]
["Рязанская область",{"$nulls":12},"Форма 2.13"]
["Самарская область",{"$nulls":12},"Форма 2.14"]
["Ставропольский край",{"$nulls":12},"Форма 3.1"]
["Тверская область",{"$nulls":12},"Форма 3.2"]
["Томская область",{"$nulls":12},"Форма 3.3"]
["Тульская область",{"$nulls":12},"Форма 3.4"]
["Тюменская область",{"$nulls":12},"Форма 3.5"]
["Удмуртская республика",{"$nulls":12},"Форма 3.6"]
["Ульяновская область",{"$nulls":12},"Форма 3.7"]
["Хабаровский край",{"$nulls":12},"Форма 3.8"]
["Ханты-Мансийский автономный округ",{"$nulls":12},"Форма 3.9"]
["Чувашская республика",{"$nulls":12},"Форма 3.10"]
["г.Севастополь",{"$nulls":12},"Форма 3.11"]
[{"$nulls":13},"Форма 3.12"]
[{"$nulls":13},"Форма 4.1"]
[{"$nulls":13},"Форма 4.2"]
[{"$nulls":13},"Форма 4.3"]
[{"$nulls":13},"Форма 4.4"]

{"sheet":"modCheckCyan","index":12,"n_rows":21,"n_cols":1,"rows_kept":21,"hidden":true}
[]
[{"$f":"IF(Территории!$E$13=\"\",1,0)","v":0}]
[{"$f":"IF(Территории!$H$13=\"\",1,0)","v":0}]
[{"$f":"IF(Территории!$K$13=\"\",1,0)","v":0}]
[{"$f":"IF('Сведения об изменении'!$E$13=\"\",1,0)","v":1}]
[{"$f":"IF(Дифференциация!$E$22=\"\",1,0)","v":0}]
[{"$f":"IF(Дифференциация!$F$22=\"\",1,0)","v":0}]
[{"$f":"IF(Дифференциация!$J$22=\"\",1,0)","v":0}]
[{"$f":"IF('Доступ к товарам и услугам'!$I$11=\"\",1,0)","v":0}]
[{"$f":"IF('Доступ к товарам и услугам'!$I$11=\"Введите наименование централизованной системы холодного водоснабжения\",1,0)","v":0}]
[{"$f":"IF('Доступ к товарам и услугам'!$I$12=\"\",1,0)","v":0}]
[{"$f":"IF('Доступ к товарам и услугам'!$I$12=\"Введите наименование централизованной системы холодного водоснабжения\",1,0)","v":0}]
[{"$f":"IF('Доступ к товарам и услугам'!$I$13=\"\",1,0)","v":0}]
[{"$f":"IF('Доступ к товарам и услугам'!$I$13=\"Введите наименование централизованной системы холодного водоснабжения\",1,0)","v":0}]
[{"$f":"IF('Доступ к товарам и услугам'!$I$14=\"\",1,0)","v":0}]
[{"$f":"IF('Доступ к товарам и услугам'!$I$14=\"Введите наименование централизованной системы холодного водоснабжения\",1,0)","v":0}]
[{"$f":"IF('Доступ к товарам и услугам'!$I$10=\"\",1,0)","v":0}]
[{"$f":"IF('Доступ к товарам и услугам'!$I$10=\"Введите наименование централизованной системы холодного водоснабжения\",1,0)","v":0}]
[{"$f":"IF('Публикация в других источниках'!$F$11=\"\",1,0)","v":0}]
[{"$f":"IF('Публикация в других источниках'!$G$11=\"\",1,0)","v":0}]
[{"$f":"IF('Публикация в других источниках'!$H$11=\"\",1,0)","v":0}]

{"sheet":"modSettings","index":13,"n_rows":14,"n_cols":3,"rows_kept":14,"hidden":true}
["Версия шаблона","VERS_TEMP","BASE"]
["Настройка справочника наименований тарифов (Y / N)","FLAG_NAME_OF_TARIFF","NN"]
["Функционал уведомлений о раскрытии (Y / N)","FLAG_OPEN_UVED","YY"]
["Функционал отслеживания типа отчета (Y / N)","FLAG_TYPE_OF_REP","YY"]
["Подрезание МР/МО по сфере оказания услуг (Y / N)","FLAG_MR_MO","YY"]
["Печать шаблона (Y / N)","FLAG_PRINT_TEMP","NN"]
["Печатные формы (Y / N)","FLAG_PRINT_FORM","YY"]
["Размещение в шаблоне ссылок на материалы Хранилища (Y / N)","FLAG_LINK_DOC","YY"]
["Отметка об отсутствии Интернета в МР/МО (Y / N)","FLAG_INTERNET_MR_MO","NN"]
["Отметка о сдаче бух баланса (Y / N)","FLAG_BUH_BAL","NN"]
["Отметка о доле выручки (Y / N)","FLAG_PART_OF_REV","NN"]
["Отображение данных об организации (Y / N)","FLAG_DATA_ORG","YY"]
["Флаг забора данных из шаблонов группы PRICE (Y / N)","FLAG_AUTOFILL_PRICE","NN"]
["Наличие ссылок на снимки экрана страницы сайта в сети Интернет, на которой размещена информация (Y / N)","FLAG_REF","YY"]

{"sheet":"modfrmSetForPrint","index":14,"n_rows":0,"n_cols":0,"rows_kept":0,"hidden":true}

{"sheet":"modInfo","index":15,"n_rows":25,"n_cols":2,"rows_kept":25,"hidden":true,"merged":[[10,3,10,10],[11,3,11,10],[12,3,12,10],[13,3,13,10],[14,3,14,10],[15,3,15,10],[16,3,16,10]]}
[null,"Титульный"]
[7,"Шаблон предназначен для отправки в субъект РФ, на территории которого осуществляется оказание услуг"]
[1,"Шаблон предназначен для предоставления в регулирующий орган следующей информации:\n1) о наличии (отсутствии) технической возможности подключения к централизованной системе холодного водоснабжения, а также о регистрации и ходе реализации заявок о подключении к централизованной системе холодного водоснабжения согласно пункту 21 Постановления Правительства РФ от 17.01.2013 N 6;\n2) cведения о раскрытии соответствующей информации на официальном сайте организации в сети Интернет, подлежащие предоставлению в орган исполнительной власти субъекта Российской Федерации в области государственного регулирования цен (тарифов) согласно пункту 10 Постановления Правительства РФ от 17.01.2013 N6;\n3) cведения об изменении, подлежащие публикации, на основании требований пункта 11 Постановления Правительства РФ от 17.01.2013 N 6."]
[2,"Информация, подлежит обязательному опубликованию на официальном сайте в сети \"Интернет\" органа исполнительной власти субъекта Российской Федерации в области государственного регулирования цен (тарифов), и (или) на официальном сайте органа местного самоуправления поселения или городского округа в случае их наделения в соответствии с законом субъекта Российской Федерации полномочиями по государственному регулированию цен (тарифов), согласно пункту 3а) Постановления Правительства РФ от 05.07.2013 №570."]
[3,"Если информация публикуется только на официальном сайте в информационно-телекоммуникационной сети \"Интернет\" (далее – сети Интернет) органа исполнительной власти субъекта Российской Федерации в области государственного регулирования цен (тарифов) или на официальном сайте органа местного самоуправления поселения или городского округа в случае их наделения в соответствии с законом субъекта Российской Федерации полномочиями по государственному регулированию цен (тарифов), в поле \"По решению организации информация раскрыта на ее официальном сайте в сети Интернет?\" необходимо указать \"Нет\".\n\nЕсли же информация дополнительно публикуется на официальном сайте организации в сети Интернет, в поле \"По решению организации информация раскрыта на ее официальном сайте в сети Интернет?\" необходимо указать \"Да\"."]
[4,"По умолчанию установлено значение «Первичное раскрытие информации». Это означает, что информация раскрывается в соответствии с установленными сроком и периодичностью.\n\nВ случае, если в раскрываемой информации произошли изменения, сведения об этих изменениях подлежат опубликованию в шаблоне с типом отчета \"Изменения в раскрытой ранее информации\".\n\nВ случае, если в уже отправленном шаблоне обнаружена ошибка, исправленный шаблон необходимо отправить с типом отчета «Корректировка ранее раскрытой информации»."]
[5,"В случае, если регулируемыми организациями оказываются услуги по нескольким технологически не связанным между собой централизованным системам холодного водоснабжения и если в отношении указанных систем устанавливаются различные тарифы в сфере холодного водоснабжения, то информация раскрывается отдельно по каждой централизованной системе холодного водоснабжения."]
[6]
[null,"Публикация на прочих ресурсах"]
[null,"Вводите адрес сайта, не нарушая цвет ячейки /если копируете гиперссылку из браузера, то выполните двойной щелчок по ячейке и только после этого можете вставить скопированный элемент/\nДля редактирования указанной гиперссылки или перехода по ней выполните двойной щелчок левой клавиши мыши по ячейке"]
[null,{"$f":"IF(OR(FLAG_LINK_DOC=\"Y\",FLAG_LINK_DOC=\"NY\",FLAG_LINK_DOC=\"YY\"),\"Указывается ссылка на загруженный в Хранилище ЕИАС снимок экрана официальной страницы сайта, на котором размещена информация\",\"Указывается ссылка на загруженный в Интернет-ресурс снимок экрана официальной страницы сайта, на котором размещена информация\") & \". Для редактирования указанной гиперссылки или перехода по ней выполните двойной щелчок левой клавиши мыши по ячейке\"","v":"Указывается ссылка на загруженный в Хранилище ЕИАС снимок экрана официальной страницы сайта, на котором размещена информация. Для редактирования указанной гиперссылки или перехода по ней выполните двойной щелчок левой клавиши мыши по ячейке"}]
[null,"Указывается дата, по состоянию на которую информация стала доступной в сети Интернет для неограниченного круга лиц\nВыберите значение из календаря (иконка справа от выбранной ячейки), либо введите дату непосредственно в ячейку в формате - 'ДД.ММ.ГГГГ'"]
[null,"Территории"]
[1,"Наименование территории оказания услуг для целей идентификации"]
[2,"Муниципальные районы и муниципальные образования, на территории которых осуществляется оказание услуг"]
[null,"Дифференциация"]
[1,"В случае, если регулируемая организация осуществляет несколько видов деятельности, информация о которых подлежит раскрытию, информация по каждому виду деятельности раскрывается отдельно."]
[2,"Поле заполняется выбором значений из списка. Если значений для выбора нет - убедитесь, что лист \"Территории\" заполнен."]
[3,"Условное наименование централизованной системы холодного водоснабжения для целей идентификации."]
[4,"В случае, если регулируемыми организациями оказываются услуги по нескольким технологически не связанным между собой  централизованным системам холодного водоснабжения и если в отношении указанных централизованных систем устанавливаются различные тарифы в сфере холодного водоснабжения, то информация раскрывается отдельно по каждой централизованной системе холодного водоснабжения."]
[null,"Доступ к товарам и услугам"]
[1,"При использовании регулируемой организацией нескольких централизованных систем холодного водоснабжения информация о резерве мощности таких централизованных систем публикуется в отношении каждой централизованной системы холодного водоснабжения."]
[null,"Сведения об изменении"]
[1,"Лист заполняется в случае, если на Титульном листе в поле \"Тип отчета\" выбрано значение «Изменения в раскрытой ранее информации»."]
[null,"Нет доступных обновлений, версия отчёта актуальна"]

{"sheet":"et_union_hor","index":16,"n_rows":46,"n_cols":26,"rows_kept":46,"hidden":true,"merged":[[18,3,20,3],[18,4,20,4],[18,5,19,5],[18,6,19,6],[18,7,19,7],[24,5,25,5],[24,6,25,6],[24,7,25,7],[34,3,36,3],[34,4,36,4],[34,5,36,5],[34,6,35,6],[34,7,35,7],[34,8,35,8],[34,9,35,9],[40,6,41,6],[40,7,41,7],[40,8,41,8],[40,9,41,9]]}
[]
[]
["et_List02"]
[]
[]
[]
["et_Comm"]
[]
[]
[]
["et_List03"]
[]
[]
[]
[]
[]
["et_List09_0"]
[]
[null,"auto",null,1,null,null,1,null,null,"1"]
[{"$nulls":10},"Добавить МО"]
[{"$nulls":7},"Добавить МР"]
[]
["et_List09_1"]
[]
[null,"auto",{"$nulls":4},1,null,null,1]
[{"$nulls":10},"Добавить МО"]
[]
["et_List09_2"]
[]
[null,"auto",{"$nulls":7},1]
[]
[]
["et_List07_1"]
[]
[{"$nulls":3},"1",null,"нет",null,1,null,"нет",null,"1",{"$nulls":12},"a",1705000]
[{"$nulls":12},"Добавить централизованную систему холодного водоснабжения"]
[{"$nulls":8},"Добавить описание территории оказания услуг"]
[]
["et_List07_4"]
[]
[{"$nulls":7},1,"","нет",null,"1",{"$nulls":12},"a",1705000]
[{"$nulls":12},"Добавить централизованную систему холодного водоснабжения"]
[]
["et_List07_5"]
[]
[{"$nulls":11},"1","",{"$nulls":11},"a",1705000]

{"sheet":"et_union_vert","index":17,"n_rows":0,"n_cols":0,"rows_kept":0,"hidden":true}

{"sheet":"modList00","index":18,"n_rows":0,"n_cols":0,"rows_kept":0,"hidden":true}

{"sheet":"modList01","index":19,"n_rows":14,"n_cols":10,"rows_kept":14,"hidden":true,"merged":[[3,3,3,9],[4,3,4,9],[6,3,7,3],[6,4,7,4],[6,5,7,5],[6,6,7,6],[6,7,7,7],[6,8,6,9],[12,3,14,3],[12,4,14,4],[12,5,14,5],[12,6,13,6],[12,7,13,7],[12,8,12,9]]}
{"$rows_empty":7}
[{"$nulls":8},"Показатель","Комментарий"]
[{"$nulls":3},"1","2","3",null,null,{"$f":"J1&\".1\"","v":".1"},{"$f":"J1&\".2\"","v":".2"}]
[]
[]
[]
[{"$nulls":8},"Введите наименование централизованной системы холодного водоснабжения"]
[{"$nulls":8},""]

{"sheet":"modList02","index":20,"n_rows":0,"n_cols":0,"rows_kept":0,"hidden":true,"merged":[[4,3,4,4],[5,3,5,4],[7,3,8,3],[7,4,8,4],[7,5,7,7]]}

{"sheet":"modList03","index":21,"n_rows":0,"n_cols":0,"rows_kept":0,"hidden":true,"merged":[[6,3,6,4],[7,3,7,4]]}

{"sheet":"modList07","index":22,"n_rows":22,"n_cols":26,"rows_kept":22,"hidden":true,"merged":[[3,3,3,8],[4,3,4,8],[5,0,6,5],[7,1,7,3],[7,4,7,5],[8,1,8,3],[8,4,8,5],[9,1,9,3],[9,4,9,5],[10,1,10,3],[10,4,10,5],[11,1,11,3],[12,1,12,3],[13,1,13,3],[17,0,18,0],[17,3,17,4],[17,5,17,8],[17,9,17,12],[18,6,18,7],[18,10,18,11],[19,6,19,7],[19,10,19,11],[21,3,23,3],[21,4,23,4],[21,5,23,5],[21,6,22,6],[21,7,22,7],[21,8,22,8],[21,9,22,9],[24,2,25,2]]}
{"$rows_empty":21}
[{"$nulls":23},64279412,"a",1705000]

{"sheet":"modList09","index":23,"n_rows":16,"n_cols":4,"rows_kept":16,"hidden":true,"merged":[[3,3,3,7],[4,3,4,7],[6,3,6,4],[6,5,6,6],[8,3,8,4],[8,5,8,7],[8,8,8,11],[9,5,9,6],[9,8,9,9],[10,5,10,6],[10,8,10,9],[12,3,14,3],[12,4,14,4],[12,5,13,5],[12,6,13,6],[12,7,13,7]]}
{"$rows_empty":11}
[{"$nulls":3},0]
[null,"man"]
[]
[]
[null,"man"]

{"sheet":"modHTTP","index":24,"n_rows":0,"n_cols":0,"rows_kept":0,"hidden":true}

{"sheet":"modfrmRegion","index":25,"n_rows":0,"n_cols":0,"rows_kept":0,"hidden":true}

{"sheet":"MR_LIST","index":26,"n_rows":0,"n_cols":0,"rows_kept":0,"hidden":true}

{"sheet":"REESTR_VT","index":27,"n_rows":0,"n_cols":0,"rows_kept":0,"hidden":true}

{"sheet":"REESTR_VED","index":28,"n_rows":4,"n_cols":2,"rows_kept":4,"hidden":true}
["ID_TARIFF_NAME","VED_NAME"]
[64235586,"Холодное водоснабжение, в т.ч. подвоз воды"]
[64235587,"Подключение (технологическое присоединение) к централизованной системе водоснабжения"]
[64235585,"Холодное водоснабжение, в т.ч. транспортировка воды, включая распределение воды"]

{"sheet":"modfrmReestrObj","index":29,"n_rows":0,"n_cols":0,"rows_kept":0,"hidden":true}

{"sheet":"DataOrg","index":30,"n_rows":0,"n_cols":0,"rows_kept":0,"hidden":true}

{"sheet":"modProv","index":31,"n_rows":0,"n_cols":0,"rows_kept":0,"hidden":true}

{"sheet":"modReestr","index":32,"n_rows":0,"n_cols":0,"rows_kept":0,"hidden":true}

{"sheet":"modfrmReestr","index":33,"n_rows":0,"n_cols":0,"rows_kept":0,"hidden":true}

{"sheet":"modUpdTemplMain","index":34,"n_rows":0,"n_cols":0,"rows_kept":0,"hidden":true}

{"sheet":"REESTR_ORG","index":35,"n_rows":302,"n_cols":10,"rows_kept":302,"hidden":true}
["№","REGION_ID","REGION_NAME","RST_ORG_ID","ORG_NAME","INN_NAME","KPP_NAME","ORG_START_DATE","ORG_END_DATE"]
[1,"2634","Нижегородская область","27569496","АО \"БЭТ\"","7708669867","770801001",null,null,"VS"]
[2,"2634","Нижегородская область","26373603","АО \"Борский водоканал\"","5246035757","524601001",null,null,"VS"]
[3,"2634","Нижегородская область","26373616","АО \"ВМЗ\"","5247004695","524701001",null,null,"VS"]
[4,"2634","Нижегородская область","26373593","АО \"Волга\"","5244009279","525350001",null,null,"VS"]
[5,"2634","Нижегородская область","26560525","АО \"ГУ ЖКХ\"","5116000922","511601001","13-05-2009 00:00:00",null,"VS"]
[6,"2634","Нижегородская область","26358314","АО \"ДЗМО\"","5247004494","524701001",null,null,"VS"]
[7,"2634","Нижегородская область","26569426","АО \"ДПО \"Пластик\"","5249015251","525350001",null,null,"VS"]
[8,"2634","Нижегородская область","26322337","АО \"Дзержинское оргстекло\"","5249058752","524901001",null,null,"VS"]
[9,"2634","Нижегородская область","26358310","АО \"ЖКХ \"КАЛИКИНСКОЕ\"","5246014281","524601001",null,null,"VS"]
[10,"2634","Нижегородская область","28158144","АО \"ИП \"Ока-Полимер\"","5249120810","524901001",null,null,"VS"]
[11,"2634","Нижегородская область","26555226","АО \"ЛИНДОВСКОЕ\"","5246000377","524601001",null,null,"VS"]
[12,"2634","Нижегородская область","26358168","АО \"Лысковокоммунсервис\"","5222000321","522201001","09-12-2004 00:00:00",null,"VS"]
[13,"2634","Нижегородская область","30841129","АО \"НОКК\"","5260267654","526001001",null,null,"VS"]
[14,"2634","Нижегородская область","31023931","АО \"НОКК\" (Балахнинский филиал)","5260267654","524443001",null,null,"VS"]
[15,"2634","Нижегородская область","26358290","АО \"НПО \"ПРЗ\"","5244012779","524401001",null,null,"VS"]
[16,"2634","Нижегородская область","27579751","АО \"НПП \"Исток\" им. Шокина\"","5050108496","520243001","07-02-1992 00:00:00",null,"VS"]
[17,"2634","Нижегородская область","26555359","АО \"СГК\"","5254082550","525401001",null,null,"VS"]
[18,"2634","Нижегородская область","26322331","АО \"СИБУР-НЕФТЕХИМ\"","5249051203","525350001",null,null,"VS"]
[19,"2634","Нижегородская область","26965665","АО \"Славянка\" филиал \"Нижегородский\"","7702707386","525743001",null,null,"VS"]
[20,"2634","Нижегородская область","26358489","АО \"ТРАНС-СИГНАЛ\"","5263024642","526301001","22-06-2016 00:00:00",null,"VS"]
[21,"2634","Нижегородская область","26358461","АО \"ТРАНСНЕФТЬ-ВЕРХНЯЯ ВОЛГА\"","5260900725","526001001",null,null,"VS"]
[22,"2634","Нижегородская область","26358197","АО «ХОХЛОМСКАЯ РОСПИСЬ»","5228001113","522801001",null,null,"VS"]
[23,"2634","Нижегородская область","26358413","АО НПП \"Полет\"","5258100129","525350001","29-12-2011 00:00:00",null,"VS"]
[24,"2634","Нижегородская область","26754787","АО ПТИЦЕФАБРИКА \"ВОРСМЕНСКАЯ\"","5252000689","525201000",null,null,"VS"]
[25,"2634","Нижегородская область","27635647","АУ \"Водоканал\"","5221005856","522101001",null,null,"VS"]
[26,"2634","Нижегородская область","26373555","Беловское МУП ЖКХ","5236002745","523601001",null,null,"VS"]
[27,"2634","Нижегородская область","26373435","Белозеровское МУМППЖКХ","5215000779","521501001","30-06-2006 00:00:00",null,"VS"]
[28,"2634","Нижегородская область","28156437","Боковское ММПП ЖКХ","5228002477","522801001",null,null,"VS"]
[29,"2634","Нижегородская область","27980367","ГБУ \"Варнавинский ПНИ\"","5207002268","520701001",null,null,"VS"]
[30,"2634","Нижегородская область","26358261","ГБУ \"Понетаевский ПНИ\"","5238001923","523801001",null,null,"VS"]
[31,"2634","Нижегородская область","26358243","ГБУ СРЦИ \"КРАСНЫЙ ЯР\"","5235001940","523501001",null,null,"VS"]
[32,"2634","Нижегородская область","26555218","ГБУЗ НО \"КИСЕЛИХИНСКИЙ ОБЛАСТНОЙ ТЕРАПЕВТИЧЕСКИЙ ГОСПИТАЛЬ ДЛЯ ВЕТЕРАНОВ ВОЙН\"","5246010400","524601001",null,null,"VS"]
[33,"2634","Нижегородская область","28043739","ГП НО НПЭК","5261005524","526101001",null,null,"VS"]
[34,"2634","Нижегородская область","26808802","Горьковская дирекция по тепловодоснабжению структурное подразделение Центральной дирекции по тепловодоснабжению - филиала ОАО \"РЖД\"","7708503727","525745041",null,null,"VS"]
[35,"2634","Нижегородская область","26358163","Дмитриевское МУП ЖКХ","5219382293","521901001",null,null,"VS"]
[36,"2634","Нижегородская область","26358130","Дубравское МУМППЖКХ","5215000842","521501001",null,null,"VS"]
[37,"2634","Нижегородская область","31025414","ЖЭ(К)О №11 (филиал ФГБУ \"ЦЖКУ\" МИНОБОРОНЫ РОССИИ)","7729314745","526245001",null,null,"VS"]
[38,"2634","Нижегородская область","26358238","ЗАО \"ЗЖБИ \"АРЬЕВСКИЙ\"","5235000047","523501001",null,null,"VS"]
[39,"2634","Нижегородская область","26646780","ЗАО \"Завод \"Красная Этна\"","5258000029","525350001",null,null,"VS"]
[40,"2634","Нижегородская область","26646756","ЗАО \"Зефс Услуги\"","5258050742","525801001",null,null,"VS"]
[41,"2634","Нижегородская область","26322355","ЗАО \"Концерн \"Термаль\"","5261017382","526101001",null,null,"VS"]
[42,"2634","Нижегородская область","28870189","ЗАО \"УК ЖИЛСЕРВИС\"","5227004496","522701001",null,null,"VS"]
[43,"2634","Нижегородская область","26358255","КУЗНЕЦОВСКОЕ МУП ЖКХ","5236002390","523601001",null,null,"VS"]
[44,"2634","Нижегородская область","26358306","Каликинский шпалопропиточный завод - филиал ОАО  \"БетЭлТранс\"","5246001839","997650001",null,null,"VS"]
[45,"2634","Нижегородская область","26358258","Катунское МУП ЖКХ","5236004975","523601001",null,null,"VS"]
[46,"2634","Нижегородская область","26380569","Кужутское МУМППЖКХ","5215000458","521501001",null,null,"VS"]
[47,"2634","Нижегородская область","26358155","МКОУ \"Краснобаковская  С(К)ШИ VIII вида\"","5219001678","521901001","28-09-2011 00:00:00",null,"VS"]
[48,"2634","Нижегородская область","28005236","МКП \"Исток\"","5213005122","521301001",null,null,"VS"]
[49,"2634","Нижегородская область","27577824","МКП \"Покровский водоканал\"","5213005108","521301001",null,null,"VS"]
[50,"2634","Нижегородская область","27574144","МКП \"Родник\"","5213005066","521301001",null,null,"VS"]
[51,"2634","Нижегородская область","26951753","МКП \"Ручеек\"","5213005098","521301001",null,null,"VS"]
[52,"2634","Нижегородская область","26758213","МКП \"Ягубовский водоканал\"","5205005143","520501001","08-06-2010 00:00:00",null,"VS"]
[53,"2634","Нижегородская область","27577808","МКП Ветошкинского сельсовета \"Веткомхоз\"","5213005115","521301001",null,null,"VS"]
[54,"2634","Нижегородская область","29648861","МП \"ВАДРЕСУРС\"","5206025103","520601001",null,null,"VS"]
[55,"2634","Нижегородская область","26373534","МП \"Водоканал\"","5229007453","522901001","04-05-2007 00:00:00",null,"VS"]
[56,"2634","Нижегородская область","26373588","МП \"Водоканал\"","5240003928","524001001",null,null,"VS"]
[57,"2634","Нижегородская область","26373529","МП \"Горводопровод\"","5228009786","522801001",null,null,"VS"]
[58,"2634","Нижегородская область","26373443","МП \"ДИВЕЕВСКОЕ ЖКХ\"","5216017133","521601001",null,null,"VS"]
[59,"2634","Нижегородская область","26373449","МП \"ЖКХ \"Ковернинское\"","5218004355","521801001",null,null,"VS"]
[60,"2634","Нижегородская область","26373451","МП \"ЖКХ \"Сухоносовское\"","5218005045","521801001",null,null,"VS"]
[61,"2634","Нижегородская область","28942141","МП \"Жилкомсервис\"","5223034940","522301001",null,null,"VS"]
[62,"2634","Нижегородская область","31020386","МП \"КОММУНАЛЬНАЯ СЛУЖБА\"","5220007353","522001001","16-11-2016 00:00:00",null,"VS"]
[63,"2634","Нижегородская область","26358144","МП \"Коммунальник\"","5216017239","521601001",null,null,"VS"]
[64,"2634","Нижегородская область","30351196","МП \"Коммунальник\"","5220005444","522001001",null,null,"VS"]
[65,"2634","Нижегородская область","26373466","МП \"Коммунальщик\"","5220004183","522001001",null,null,"VS"]
[66,"2634","Нижегородская область","26358307","МП \"Линдовский ККПиБ\"","5246004124","524601001",null,null,"VS"]
[67,"2634","Нижегородская область","26373490","МП \"НКС\"","5223033369","522301001",null,null,"VS"]
[68,"2634","Нижегородская область","26373492","МП \"Радуга\"","5224003504","522401001",null,null,"VS"]
[69,"2634","Нижегородская область","26358141","МП \"Сатисское ЖКХ\"","5216017126","521601001",null,null,"VS"]
[70,"2634","Нижегородская область","26358297","МП ЖКХ С.КАМЕНКИ","5245007965","524501001",null,null,"VS"]
[71,"2634","Нижегородская область","26373565","МУП \"Архангельское ЖКХ\"","5238005879","523801001",null,null,"VS"]
[72,"2634","Нижегородская область","26652819","МУП \"Большое Козино\"","5244022199","524401001",null,null,"VS"]
[73,"2634","Нижегородская область","26373395","МУП \"Бутурлинскрайснабкомплект-1\"","5205004904","520501001",null,null,"VS"]
[74,"2634","Нижегородская область","26373543","МУП \"Бытсервис\"","5231004770","523101001",null,null,"VS"]
[75,"2634","Нижегородская область","30959246","МУП \"ВОДОКАНАЛ\"","5221006970","522101001",null,null,"VS"]
[76,"2634","Нижегородская область","30868847","МУП \"ВОДОКАНАЛ\"","5225014467","522501001","03-04-2016 00:00:00",null,"VS"]
[77,"2634","Нижегородская область","26555458","МУП \"ВОДОКАНАЛ\"","5252021897","525201001",null,null,"VS"]
[78,"2634","Нижегородская область","30855659","МУП \"ВОРОТЫНСКОЕ ЖКХ\"","5211759886","521101001",null,null,"VS"]
[79,"2634","Нижегородская область","26556556","МУП \"Валтовское\"","5223033680","522301001",null,null,"VS"]
[80,"2634","Нижегородская область","26358098","МУП \"Варнавинкоммунсервис\"","5207003582","520701001",null,null,"VS"]
[81,"2634","Нижегородская область","27636510","МУП \"Вахтантепловодоканал\"","5239008713","523901001",null,null,"VS"]
[82,"2634","Нижегородская область","26373558","МУП \"Вершиловский сельский ЖЭУ\"","5236007310","523601001",null,null,"VS"]
[83,"2634","Нижегородская область","26373540","МУП \"Виткулово\"","5231005132","523101001",null,null,"VS"]
[84,"2634","Нижегородская область","28871157","МУП \"Водоканал\"","5239010720","523901001",null,null,"VS"]
[85,"2634","Нижегородская область","26373633","МУП \"Водоканал\"","5250021348","525001001",null,null,"VS"]
[86,"2634","Нижегородская область","26373654","МУП \"Ворсменское МПП ЖКХ\"","5252004965","525201001",null,null,"VS"]
[87,"2634","Нижегородская область","26373571","МУП \"Восход\"","5238005808","523801001",null,null,"VS"]
[88,"2634","Нижегородская область","26358264","МУП \"ГАРАНТ-ЖКХ\"","5238005477","523801001",null,null,"VS"]
[89,"2634","Нижегородская область","29645609","МУП \"Гидроторф - Водоканал\" МО \"р.п. Гидроторф\"","5244027743","524401001","03-04-2014 00:00:00",null,"VS"]
[90,"2634","Нижегородская область","26373661","МУП \"Горводоканал\"","5254005971","525401001",null,null,"VS"]
[91,"2634","Нижегородская область","28447754","МУП \"Городской Водоканал\"","5250058789","525001001",null,null,"VS"]
[92,"2634","Нижегородская область","27371762","МУП \"Городской жилфонд\"","5226013748","522601001",null,null,"VS"]
[93,"2634","Нижегородская область","26358121","МУП \"ЖИЛИЩНИК\" ВОЛОДАРСКОГО РАЙОНА","5214006023","521401001",null,null,"VS"]
[94,"2634","Нижегородская область","28449409","МУП \"ЖКХ \"СЕВЕРНЫЙ\"","5248036146","524801001",null,null,"VS"]
[95,"2634","Нижегородская область","28005091","МУП \"ЖКХ Буревестник\"","5248033561","524801001",null,null,"VS"]
[96,"2634","Нижегородская область","26358324","МУП \"ЖКХ Зарубинское\"","5248015611","524801001",null,null,"VS"]
[97,"2634","Нижегородская область","26358331","МУП \"ЖКХ Зиняковское\"","5248015700","524801001",null,null,"VS"]
[98,"2634","Нижегородская область","26358333","МУП \"ЖКХ Ильинское\"","5248015724","524801001",null,null,"VS"]
[99,"2634","Нижегородская область","26358330","МУП \"ЖКХ Ковригинское\"","5248015690","524801001",null,null,"VS"]
[100,"2634","Нижегородская область","26358329","МУП \"ЖКХ Кумохинское\"","5248015682","524801001",null,null,"VS"]
[101,"2634","Нижегородская область","28147903","МУП \"ЖКХ Лысковского района\"","5222070569","522201001",null,null,"VS"]
[102,"2634","Нижегородская область","26358335","МУП \"ЖКХ Мошковское\"","5248015756","524801001",null,null,"VS"]
[103,"2634","Нижегородская область","26358336","МУП \"ЖКХ ПЕРВОМАЙСКОЕ\"","5248016703","524801001",null,null,"VS"]
[104,"2634","Нижегородская область","27893480","МУП \"ЖКХ Сеченовское\"","5230004200","523001001",null,null,"VS"]
[105,"2634","Нижегородская область","26358327","МУП \"ЖКХ Смольковское\"","5248015650","524801001",null,null,"VS"]
[106,"2634","Нижегородская область","26358334","МУП \"ЖКХ Тимирязево\"","5248015749","524801001",null,null,"VS"]
[107,"2634","Нижегородская область","26358332","МУП \"ЖКХ Федуринское\"","5248015717","524801001",null,null,"VS"]
[108,"2634","Нижегородская область","26358081","МУП \"Жилком\"","5201029760","520101001",null,null,"VS"]
[109,"2634","Нижегородская область","26373562","МУП \"Жилкоммунсервис\" д. Котельницы","5236007126","523601001",null,null,"VS"]
[110,"2634","Нижегородская область","26358220","МУП \"Жилсервис\"","5231004795","523101001",null,null,"VS"]
[111,"2634","Нижегородская область","27571987","МУП \"Зубилихинское ЖКХ\"","5219382991","521901001",null,null,"VS"]
[112,"2634","Нижегородская область","26552168","МУП \"КОМУНЭНЕРГО\"","5238006336","523801001",null,null,"VS"]
[113,"2634","Нижегородская область","30354230","МУП \"КОНЕВО\"","5244029437","524401001",null,null,"VS"]
[114,"2634","Нижегородская область","26373446","МУП \"Княгининское ЖКХ\"","5217000037","521701001",null,null,"VS"]
[115,"2634","Нижегородская область","26373584","МУП \"Ком-сервис\"","5238005815","523801001",null,null,"VS"]
[116,"2634","Нижегородская область","26358114","МУП \"Коммунальник\"","5214000039","521401001",null,null,"VS"]
[117,"2634","Нижегородская область","28146599","МУП \"Коммунальник\"","5222003594","522201001",null,null,"VS"]
[118,"2634","Нижегородская область","26373510","МУП \"Коммунальщик\"","5226013184","522601001",null,null,"VS"]
[119,"2634","Нижегородская область","26373421","МУП \"Коммунсервис\"","5214000230","521401001",null,null,"VS"]
[120,"2634","Нижегородская область","28827589","МУП \"Кочергино\"","5244025619","524401001",null,null,"VS"]
[121,"2634","Нижегородская область","26557794","МУП \"Красноборское ЖКХ\"","5238005928","523801001",null,null,"VS"]
[122,"2634","Нижегородская область","26358265","МУП \"Лесогорск ЖКХ\"","5238005484","523801001",null,null,"VS"]
[123,"2634","Нижегородская область","28872216","МУП \"МАЛОЕ КОЗИНО\"","5244028031","524401001",null,null,"VS"]
[124,"2634","Нижегородская область","27839234","МУП \"МП \"Водоканал\" МО \"города Балахна\"","5244025070","524401001",null,null,"VS"]
[125,"2634","Нижегородская область","26652814","МУП \"МП \"ТЕПЛОЭНЕРГО\" МО \"БМР НО\"","5244022262","524401001",null,null,"VS"]
[126,"2634","Нижегородская область","27808573","МУП \"Новосмолинское\"","5214010679","521401001",null,null,"VS"]
[127,"2634","Нижегородская область","26358266","МУП \"ПРАКТИК\"","5238005533","523801001",null,null,"VS"]
[128,"2634","Нижегородская область","26373647","МУП \"Райводоканал\"","5251007667","525101001","16-11-2001 00:00:00",null,"VS"]
[129,"2634","Нижегородская область","30382083","МУП \"СЕВЕРНОЕ ЖКХ\"","5207016670","520701001",null,null,"VS"]
[130,"2634","Нижегородская область","26358226","МУП \"СПАССКОЕ ЖКХ\"","5232002977","523201001",null,null,"VS"]
[131,"2634","Нижегородская область","26380675","МУП \"СТОКИ\"","5247015217","524701001",null,null,"VS"]
[132,"2634","Нижегородская область","26373539","МУП \"Сеченовское ЖКХ\"","5230000050","523001001",null,null,"VS"]
[133,"2634","Нижегородская область","26358268","МУП \"Смирновец\"","5238005558","523801001",null,null,"VS"]
[134,"2634","Нижегородская область","26373448","МУП \"Соловьевское ЖКХ\"","5217000333","521701003",null,null,"VS"]
[135,"2634","Нижегородская область","28053496","МУП \"СяваТепло\"","5239010688","523901001",null,null,"VS"]
[136,"2634","Нижегородская область","27636513","МУП \"Сявакоммунсервис\"","5239008061","523901001",null,null,"VS"]
[137,"2634","Нижегородская область","26373630","МУП \"ТВК\" г. Заволжья","5248016372","524801001",null,null,"VS"]
[138,"2634","Нижегородская область","27573878","МУП \"Тепло\"","5252029494","525201001",null,null,"VS"]
[139,"2634","Нижегородская область","26358322","МУП \"Тепловые сети\"","5248011350","524801001",null,null,"VS"]
[140,"2634","Нижегородская область","26358206","МУП \"Теплосервис\"","5228009803","522801001",null,null,"VS"]
[141,"2634","Нижегородская область","26358267","МУП \"Теплосети\"","5238005540","523801001",null,null,"VS"]
[142,"2634","Нижегородская область","26373542","МУП \"Теплоснаб\"","5231004763","523101001","26-12-2005 00:00:00",null,"VS"]
[143,"2634","Нижегородская область","26358221","МУП \"Теплоэнергия-1\"","5231004851","523101001",null,null,"VS"]
[144,"2634","Нижегородская область","26373596","МУП \"УВКХ\"","5245013020","524501001",null,null,"VS"]
[145,"2634","Нижегородская область","26373388","МУП \"Управляющая компания\"","5204001114","520401001",null,null,"VS"]
[146,"2634","Нижегородская область","27571980","МУП \"Чащихинское ЖКХ\"","5219382984","521901001","14-04-2011 00:00:00",null,"VS"]
[147,"2634","Нижегородская область","26373587","МУП \"Шахуньяводоканал\"","5239008791","523901001",null,null,"VS"]
[148,"2634","Нижегородская область","27571975","МУП \"Шеманихинское ЖКХ\"","5219383106","521901001",null,null,"VS"]
[149,"2634","Нижегородская область","26551775","МУП \"Юго-Запад\"","5227005267","522701001",null,null,"VS"]
[150,"2634","Нижегородская область","26358223","МУП \"Яковское\"","5231005125","523101001",null,null,"VS"]
[151,"2634","Нижегородская область","27188243","МУП «Ананьевское ЖКХ»","5217000326","521701001",null,null,"VS"]
[152,"2634","Нижегородская область","28977039","МУП ВАРНАВИНСКОГО РАЙОНА \"ВОДОКАНАЛ\"","5207000133","520701001",null,null,"VS"]
[153,"2634","Нижегородская область","26774409","МУП Варнавинского района \"Северный\"","5207013439","520701001",null,null,"VS"]
[154,"2634","Нижегородская область","27577563","МУП ЖКХ","5237002949","523701001",null,null,"VS"]
[155,"2634","Нижегородская область","26358136","МУП ЖКХ \"БОГОЯВЛЕНСКОЕ\"","5215010375","521501001",null,null,"VS"]
[156,"2634","Нижегородская область","28146582","МУП ЖКХ \"Бармино\"","5222000272","522201001",null,null,"VS"]
[157,"2634","Нижегородская область","28146616","МУП ЖКХ \"Валки\"","5222059798","522201001",null,null,"VS"]
[158,"2634","Нижегородская область","26373417","МУП ЖКХ \"Водоканал\"","5212007342","521201001",null,null,"VS"]
[159,"2634","Нижегородская область","26373427","МУП ЖКХ \"Жилсервис\" Володарского района","5214007997","521401001","10-06-2003 00:00:00",null,"VS"]
[160,"2634","Нижегородская область","26358120","МУП ЖКХ \"Ильиногорское\"","5214005012","521401001",null,null,"VS"]
[161,"2634","Нижегородская область","27633085","МУП ЖКХ \"Коммунальник\"","5203002330","520303001",null,null,"VS"]
[162,"2634","Нижегородская область","26358169","МУП ЖКХ \"Леньково\"","5222070336","522201001",null,null,"VS"]
[163,"2634","Нижегородская область","26358173","МУП ЖКХ \"Нива\"","5222001100","522201001",null,null,"VS"]
[164,"2634","Нижегородская область","26358170","МУП ЖКХ \"Просек\"","5222070343","522201001",null,null,"VS"]
[165,"2634","Нижегородская область","28452082","МУП ЖКХ \"Сокол\"","5248034734","524801001",null,null,"VS"]
[166,"2634","Нижегородская область","26555489","МУП ЖКХ \"Тепелевское\"","5215001797","521501001","13-10-2009 00:00:00",null,"VS"]
[167,"2634","Нижегородская область","28155211","МУП ЖКХ Бриляково","5248015668","524801001",null,null,"VS"]
[168,"2634","Нижегородская область","26553600","МУП ЖКХ Григоровского сельсовета","5204001467","520401001",null,null,"VS"]
[169,"2634","Нижегородская область","28155300","МУП ЖКХ Смиркино","5248015643","524801001",null,null,"VS"]
[170,"2634","Нижегородская область","26358092","МУП ЖКХ Холязинского сельсовета","5204003070","520401001",null,null,"VS"]
[171,"2634","Нижегородская область","26358091","МУП ЖКХ п. Советский","5204002319","520401001",null,null,"VS"]
[172,"2634","Нижегородская область","26552080","МУП ЖКХ р.п. Красные Баки","5219382342","521901001","04-07-2007 00:00:00",null,"VS"]
[173,"2634","Нижегородская область","26358231","МУП Тонкинского района \"Тонкинские теплосети\"","5233002810","523301001",null,null,"VS"]
[174,"2634","Нижегородская область","26373600","МУП п. Буревестник","5245012411","524501001",null,null,"VS"]
[175,"2634","Нижегородская область","26358129","Малопицкое МУМППЖКХ","5215000761","521501001","29-06-2006 00:00:00",null,"VS"]
[176,"2634","Нижегородская область","26358124","Нижегородское МУМППЖКХ","5215000391","521501001",null,null,"VS"]
[177,"2634","Нижегородская область","26358150","ОАО \"Агроплемкомбинат МИР\"","5218005172","521801001",null,null,"VS"]
[178,"2634","Нижегородская область","27367624","ОАО \"Агрофирма \"Птицефабрика Сеймовская\"","5214002050","521401001",null,null,"VS"]
[179,"2634","Нижегородская область","26358301","ОАО \"Борская фабрика ПОШ\"","5246000458","524601001",null,null,"VS"]
[180,"2634","Нижегородская область","26555692","ОАО \"Вознесенский водоканал\"","5210189908","521001001",null,null,"VS"]
[181,"2634","Нижегородская область","26373632","ОАО \"ДВК\"","5260154749","524901001",null,null,"VS"]
[182,"2634","Нижегородская область","26358421","ОАО \"ЗТО \"Камея\"","5259010887","525901001",null,null,"VS"]
[183,"2634","Нижегородская область","26358117","ОАО \"Ильиногорское\"","5214001459","521401001",null,null,"VS"]
[184,"2634","Нижегородская область","26569255","ОАО \"Керма\"","5250001581","525001001",null,null,"VS"]
[185,"2634","Нижегородская область","26358237","ОАО \"Коммунтехсервис\"","5234003863","523401001",null,null,"VS"]
[186,"2634","Нижегородская область","26358270","ОАО \"Молоко\"","5239001108","523901001",null,null,"VS"]
[187,"2634","Нижегородская область","26373662","ОАО \"НИЖЕГОРОДСКИЙ ВОДОКАНАЛ\"","5257086827","525350001",null,null,"VS"]
[188,"2634","Нижегородская область","26358321","ОАО \"ПАНСИОНАТ \"БУРЕВЕСТНИК\"","5248005892","524801001",null,null,"VS"]
[189,"2634","Нижегородская область","26650758","ОАО \"Плодопитомник\"","5222002248","522201001",null,null,"VS"]
[190,"2634","Нижегородская область","26648877","ОАО \"РЖД\" (Дирекция по тепловодоснабжению)","7708503727","997650010",null,null,"VS"]
[191,"2634","Нижегородская область","26808463","ОАО \"Синтез\"","5249003520","524901001",null,null,"VS"]
[192,"2634","Нижегородская область","27054261","ОАО \"ТГК-6\"","5257072937","526001001",null,null,"VS"]
[193,"2634","Нижегородская область","26358112","ОАО \"Тепловик\"","5211759082","521101001","26-02-2004 00:00:00",null,"VS"]
[194,"2634","Нижегородская область","26951315","ОАО \"УК ЖКХ Починковского района\"","5227006006","522701001",null,null,"VS"]
[195,"2634","Нижегородская область","26358214","ОАО \"УК ЖКХ Сергачского района\"","5229007213","522901001",null,null,"VS"]
[196,"2634","Нижегородская область","26816822","ОАО \"Эй Джи Си БСЗ\"","5246002261","525350001",null,null,"VS"]
[197,"2634","Нижегородская область","26373589","ООО \"АРЗАМАССКИЙ ВОДОКАНАЛ\"","5243027892","524301001","24-02-2010 00:00:00",null,"VS"]
[198,"2634","Нижегородская область","26358389","ООО \"Автозаводская ТЭЦ\"","5256049357","525350001",null,null,"VS"]
[199,"2634","Нижегородская область","28140500","ООО \"Агрофирма \"Волготрансгаз\"","5203001513","522202001",null,null,"VS"]
[200,"2634","Нижегородская область","26758117","ООО \"АкваКом\"","5228056218","522801001",null,null,"VS"]
[201,"2634","Нижегородская область","26358250","ООО \"Арьякоммунсервис\"","5235006602","523501001",null,null,"VS"]
[202,"2634","Нижегородская область","31043296","ООО \"БКК\"","5244030591","524401001",null,null,"VS"]
[203,"2634","Нижегородская область","26373394","ООО \"Бутурлинский водоканал\"","5205004809","520501001",null,null,"VS"]
[204,"2634","Нижегородская область","26373590","ООО \"Быт-Сервис\"","5244015434","524401001",null,null,"VS"]
[205,"2634","Нижегородская область","28007422","ООО \"ВАСИЛЬСУРСКАЯ ЖКО\"","5211000129","521101001",null,null,"VS"]
[206,"2634","Нижегородская область","28001435","ООО \"ВИКОМ\"","5210000334","521001001",null,null,"VS"]
[207,"2634","Нижегородская область","30836585","ООО \"ВОД-СТРОЙ\"","5221003383","522101001",null,null,"VS"]
[208,"2634","Нижегородская область","27367568","ООО \"Вадводоканал\"","5206024741","520601001",null,null,"VS"]
[209,"2634","Нижегородская область","30382101","ООО \"ВетлугаСервис\"","5209003147","520901001",null,null,"VS"]
[210,"2634","Нижегородская область","28456900","ООО \"Ветлугаводоканал\"","5209005955","520901001",null,null,"VS"]
[211,"2634","Нижегородская область","26555487","ООО \"ВоСток-ДК\"","5215001638","521501001",null,null,"VS"]
[212,"2634","Нижегородская область","27571534","ООО \"Водоканал\"","5221006360","522101001",null,null,"VS"]
[213,"2634","Нижегородская область","26373553","ООО \"Водоканал\"","5235006585","523501001",null,null,"VS"]
[214,"2634","Нижегородская область","26555521","ООО \"Водоканал\"","5236007711","523601001",null,null,"VS"]
[215,"2634","Нижегородская область","26373608","ООО \"Водоканал\"","5247003099","524701001",null,null,"VS"]
[216,"2634","Нижегородская область","28857372","ООО \"Волга-УК \"ЖКХ\"","5244023957","524401001",null,null,"VS"]
[217,"2634","Нижегородская область","31026167","ООО \"Восход\"","5207016711","520701001",null,null,"VS"]
[218,"2634","Нижегородская область","26774403","ООО \"Восходкомин\"","5207013252","520701001",null,null,"VS"]
[219,"2634","Нижегородская область","26373418","ООО \"Гагинское ЖКХ\"","5213004143","521301001",null,null,"VS"]
[220,"2634","Нижегородская область","26869048","ООО \"Елена\"","5237003325","523701001",null,null,"VS"]
[221,"2634","Нижегородская область","28091842","ООО \"ЖКС\"","5223034676","522301001",null,null,"VS"]
[222,"2634","Нижегородская область","26557165","ООО \"Жилкомсервис\"","5228055711","522801001",null,null,"VS"]
[223,"2634","Нижегородская область","26650748","ООО \"Жилкомсервис\"","5252023559","525201001",null,null,"VS"]
[224,"2634","Нижегородская область","26562570","ООО \"Заводские сети\"","5256049340","525350001",null,null,"VS"]
[225,"2634","Нижегородская область","26322342","ООО \"Зефс-энерго\"","5258049909","525801001",null,null,"VS"]
[226,"2634","Нижегородская область","30854345","ООО \"КОММУНАЛЬЩИК-НН\"","5245027023","524501001","19-10-2015 00:00:00",null,"VS"]
[227,"2634","Нижегородская область","26555680","ООО \"КОМСЕРВИС-В\"","5208004853","520801001",null,null,"VS"]
[228,"2634","Нижегородская область","28815743","ООО \"КСК\"","5256122751","525601001",null,null,"VS"]
[229,"2634","Нижегородская область","28871053","ООО \"Капролактам-Энерго\"","5249133382","524901001",null,null,"VS"]
[230,"2634","Нижегородская область","26358104","ООО \"Коммунальник\"","5209005634","520901001",null,null,"VS"]
[231,"2634","Нижегородская область","27566780","ООО \"Коммунальщик\"","5245017794","524501001",null,null,"VS"]
[232,"2634","Нижегородская область","26373659","ООО \"Коммунальщик\"","5252022562","525201001",null,null,"VS"]
[233,"2634","Нижегородская область","27634860","ООО \"Коммунальщик\"","5260262462","526001001",null,null,"VS"]
[234,"2634","Нижегородская область","26555474","ООО \"Коммунсервис\"","5230003848","523001001",null,null,"VS"]
[235,"2634","Нижегородская область","28455154","ООО \"Коммунсервис\"","5235007356","523501001",null,null,"VS"]
[236,"2634","Нижегородская область","27630632","ООО \"Кочуновский водоканал\"","5205005418","520501001",null,null,"VS"]
[237,"2634","Нижегородская область","26358111","ООО \"Кузьмияр\"","5211001210","521101001",null,null,"VS"]
[238,"2634","Нижегородская область","27886941","ООО \"Кузьмиярское\"","5211759413","521101001",null,null,"VS"]
[239,"2634","Нижегородская область","26795557","ООО \"Локал-Клининг\"","5248023556","524801001",null,null,"VS"]
[240,"2634","Нижегородская область","31044539","ООО \"Механика\"","5249152071","524901001",null,null,"VS"]
[241,"2634","Нижегородская область","28457679","ООО \"Мухтоловское ЖКХ\"","5201000264","520101001","03-07-2012 00:00:00",null,"VS"]
[242,"2634","Нижегородская область","26758070","ООО \"Никола\"","5228056095","522801001",null,null,"VS"]
[243,"2634","Нижегородская область","26358215","ООО \"Пожарки\"","5229007238","522901001","03-10-2006 00:00:00",null,"VS"]
[244,"2634","Нижегородская область","28425154","ООО \"Профит\"","5262287335","526201001",null,null,"VS"]
[245,"2634","Нижегородская область","26754771","ООО \"Птицефабрика \"Павловская\"","5252025796","525201001",null,null,"VS"]
[246,"2634","Нижегородская область","28859728","ООО \"РАЙВОДОКАНАЛСЕРВИС\"","5202012350","520201001",null,null,"VS"]
[247,"2634","Нижегородская область","28985128","ООО \"РВК\"","5249135284","524901001","01-09-2014 00:00:00",null,"VS"]
[248,"2634","Нижегородская область","30949304","ООО \"РДУ\"","5249122133","524901001",null,null,"VS"]
[249,"2634","Нижегородская область","28451538","ООО \"РОСТ-Строй\"","5221005895","522101001",null,null,"VS"]
[250,"2634","Нижегородская область","26570488","ООО \"Райводоканал\"","5201030090","520101001","12-01-2009 00:00:00",null,"VS"]
[251,"2634","Нижегородская область","28016596","ООО \"Ремстройсервис\"","5245023702","524501001",null,null,"VS"]
[252,"2634","Нижегородская область","26654120","ООО \"Ресурс\"","5225005769","522501001",null,null,"VS"]
[253,"2634","Нижегородская область","26551208","ООО \"Санаторий \"Городецкий\"","5248013357","524801001","13-10-1999 00:00:00",null,"VS"]
[254,"2634","Нижегородская область","26759066","ООО \"Сосновскдорремстрой\"","5231003248","523101001",null,null,"VS"]
[255,"2634","Нижегородская область","27322384","ООО \"Сухобезводнинское ЖКХ\"","5228056070","522801001",null,null,"VS"]
[256,"2634","Нижегородская область","27580815","ООО \"Сява ЖКУ\"","5239010053","523901001",null,null,"VS"]
[257,"2634","Нижегородская область","27784821","ООО \"Тепло\"","5239010078","523901001",null,null,"VS"]
[258,"2634","Нижегородская область","26358312","ООО \"Техноэнергосервис\"","5246022243","524601001",null,null,"VS"]
[259,"2634","Нижегородская область","30905542","ООО \"УК \"НОКК\"","7714740243","526001001",null,null,"VS"]
[260,"2634","Нижегородская область","26555443","ООО \"Уренское ЖКХ\"","5235006592","523501001",null,null,"VS"]
[261,"2634","Нижегородская область","26373549","ООО \"Устакоммунсервис\"","5235006578","523501001",null,null,"VS"]
[262,"2634","Нижегородская область","26373383","ООО \"Чернухинские водопроводные сети Арзамасского района\"","5202007128","520201000",null,null,"VS"]
[263,"2634","Нижегородская область","27673406","ООО \"Экоин - НОРСИ\"","5250038535","525001001",null,null,"VS"]
[264,"2634","Нижегородская область","27774384","ООО \"Энерго Ресурс\"","5214010855","521401001",null,null,"VS"]
[265,"2634","Нижегородская область","26776525","ООО «Коммунальные системы»","5216017912","521601001",null,null,"VS"]
[266,"2634","Нижегородская область","28155314","ООО ВИК","5244018499","524401001",null,null,"VS"]
[267,"2634","Нижегородская область","30359845","ОП \"Нижегородское\" АО \"Главное управление жилищно-коммунального хозяйства\"","5116000922","526245001",null,null,"VS"]
[268,"2634","Нижегородская область","26358115","Ордена \"Знак Почета\" ОАО \"Сетка\"","5214000127","521401001",null,null,"VS"]
[269,"2634","Нижегородская область","26322338","ПАО \"ЗМЗ\"","5248004137","524801001",null,null,"VS"]
[270,"2634","Нижегородская область","26322359","ПАО \"Завод \"Красное Сормово\"","5263006629","526301001",null,null,"VS"]
[271,"2634","Нижегородская область","26358385","ПАО \"МАНН\"","5256045754","525601001",null,null,"VS"]
[272,"2634","Нижегородская область","26358362","ПАО \"МИТРА\"","5252000456","525201001",null,null,"VS"]
[273,"2634","Нижегородская область","26506400","ПАО \"МРСК Центра и Приволжья\" филиал \"Нижновэнерго\"","5260200603","526002001",null,null,"VS"]
[274,"2634","Нижегородская область","26322360","ПАО \"НМЗ\"","5259008768","525901001",null,null,"VS"]
[275,"2634","Нижегородская область","26358101","ПАО \"ТРУД\"","5208000834","520801001",null,null,"VS"]
[276,"2634","Нижегородская область","26555466","Перевозское МУП \"Жилсервис\"","5225005342","522501001",null,null,"VS"]
[277,"2634","Нижегородская область","26358159","Прудовское МУП ЖКХ","5219005129","521901001",null,null,"VS"]
[278,"2634","Нижегородская область","26358256","Пуреховское МУП ЖКХ","5236002880","523601001",null,null,"VS"]
[279,"2634","Нижегородская область","30869142","СПК \"ЗАВЕТЫ ИЛЬИЧА\"","5222001075","522201001","20-09-2002 00:00:00",null,"VS"]
[280,"2634","Нижегородская область","26555497","СПК \"Ковернино\"","5218004299","521801001",null,null,"VS"]
[281,"2634","Нижегородская область","26555480","СПК \"Колхоз Искра\"","5245023484","524501001",null,null,"VS"]
[282,"2634","Нижегородская область","26555493","СПК \"Колхоз им. Кутузова\"","5218000791","521801001",null,null,"VS"]
[283,"2634","Нижегородская область","26555499","СПК \"Семинский\"","5218003601","521801001",null,null,"VS"]
[284,"2634","Нижегородская область","26358149","СПК \"Хохлома\"","5218000784","521801001",null,null,"VS"]
[285,"2634","Нижегородская область","26358126","Сарлейское МУМППЖКХ","5215000507","521501001","24-03-2006 00:00:00",null,"VS"]
[286,"2634","Нижегородская область","26373561","Соломатовское МУП ЖКХ","5236006683","523601001",null,null,"VS"]
[287,"2634","Нижегородская область","27372109","Суроватихинское МУМПЖКХ","5215000722","521501001",null,null,"VS"]
[288,"2634","Нижегородская область","26555672","ТНВ \"Нива-Михеев и К\"","5205000032","520501001",null,null,"VS"]
[289,"2634","Нижегородская область","30903763","ФГБУ \"ЦЖКУ\" МИНОБОРОНЫ РОССИИ","7729314745","770101001",null,null,"VS"]
[290,"2634","Нижегородская область","26653400","ФГКУ Комбинат \"Монтаж\"","5244005940","524401001",null,null,"VS"]
[291,"2634","Нижегородская область","26358103","ФГОУ СПО \"Ветлужский лесотехнический техникум\"","5209002802","520901001",null,null,"VS"]
[292,"2634","Нижегородская область","26896942","ФГОУ СПО \"Ильино-Заборский сельскохозяйственный техникум\"","5228002533","522801001",null,null,"VS"]
[293,"2634","Нижегородская область","26755460","ФГОУ СПО \"Работкинский аграрный колледж\"","5250007142","525001001",null,null,"VS"]
[294,"2634","Нижегородская область","26358487","ФГУП \"Завод \"Электромаш\"","5263002110","526301001",null,null,"VS"]
[295,"2634","Нижегородская область","27566895","ФГУП \"Центр эксплуатации объектов наземной космической инфраструктуры\"","7702044530","770201001",null,null,"VS"]
[296,"2634","Нижегородская область","26322363","ФКП \"Завод имени Я.М. Свердлова\"","5249002485","524901001",null,null,"VS"]
[297,"2634","Нижегородская область","27577557","ФКУ ИК-7 ГУФСИН РОССИИ ПО НИЖЕГОРОДСКОЙ ОБЛАСТИ","5207002317","520701001",null,null,"VS"]
[298,"2634","Нижегородская область","26358151","ФКУ ЛИУ-3 ГУФСИН РОССИИ ПО НИЖЕГОРОДСКОЙ ОБЛАСТИ","5219004125","521901001","21-03-2011 00:00:00",null,"VS"]
[299,"2634","Нижегородская область","28942868","Филиал \"Нижегородский\" ПАО \"Т ПЛЮС\"","6315376946","526043001",null,null,"VS"]
[300,"2634","Нижегородская область","26358460","Филиал ОАО \"Верхневолжские магистральные нефтепроводы\" - Горьковское районное нефтепроводное управление","5260900725","525002001",null,null,"VS"]
[301,"2634","Нижегородская область","28031747","филиал \"Нижегородский\" ОАО \"Славянка\"","7702707386","520201001",null,null,"VS"]

{"sheet":"modClassifierValidate","index":36,"n_rows":0,"n_cols":0,"rows_kept":0,"hidden":true}

{"sheet":"modHyp","index":37,"n_rows":0,"n_cols":0,"rows_kept":0,"hidden":true}

{"sheet":"modfrmDateChoose","index":38,"n_rows":0,"n_cols":0,"rows_kept":0,"hidden":true}

{"sheet":"modComm","index":39,"n_rows":0,"n_cols":0,"rows_kept":0,"hidden":true}

{"sheet":"modThisWorkbook","index":40,"n_rows":0,"n_cols":0,"rows_kept":0,"hidden":true}

{"sheet":"REESTR_MO","index":41,"n_rows":2,"n_cols":4,"rows_kept":2,"hidden":true}
["№","МР","МО","МО_ОКТМО"]
[1,"город Нижний Новгород","город Нижний Новгород","22701000"]

{"sheet":"modfrmReestrMR","index":42,"n_rows":0,"n_cols":0,"rows_kept":0,"hidden":true}

{"sheet":"modServiceModule","index":43,"n_rows":0,"n_cols":0,"rows_kept":0,"hidden":true}

{"sheet":"modfrmCheckUpdates","index":44,"n_rows":0,"n_cols":0,"rows_kept":0,"hidden":true}

{"sheet":"REESTR_DS","index":45,"n_rows":5,"n_cols":2,"rows_kept":5,"hidden":true}
[]
[]
[null,"город Нижний Новгород, город Нижний Новгород (22701000);"]
[null,"описание 2"]
[null,"Добавить "]

{"sheet":"REESTR_CHS","index":46,"n_rows":0,"n_cols":0,"rows_kept":0,"hidden":true}

{"sheet":"REESTR_LINK","index":47,"n_rows":2,"n_cols":3,"rows_kept":2,"hidden":true}
["ID","LINK_NAME","REGION"]
[64275710,"https://tariff.eias.ru/disclo/get_file?p_guid=????????-????-????-????-????????????","ALL"]